fUSD/lending_fUSD_20240813
["ID","MTS","AMOUNT","RATE_DAILY","PERIOD"]
[334753118,1723535498708,-500.0,0.00016469,2]
[334753119,1723535498718,-803.87,0.00016469,2]
[334753120,1723535498727,-500.0,0.00016469,2]
[334753121,1723535498736,-500.0,0.00016539,2]
[334753122,1723535498746,-1863.44,0.00016539,2]
[334753123,1723535498756,-500.0,0.00016539,2]
[334753124,1723535498766,-246.0750971,0.00016539,2]
[334753125,1723535498776,-150.0,0.00016539,2]
[334753126,1723535498786,-1155.62,0.00016539,2]
[334753127,1723535498795,-714.2,0.00016539,2]
[334753128,1723535498804,-1241.0,0.00016539,2]
[334753129,1723535498813,-755.25,0.00016539,2]
[334753130,1723535498822,-791.16,0.00016539,2]
[334753131,1723535498832,-392.50827213,0.00016539,2]
[334753132,1723535498841,-946.68,0.00016539,2]
[334753133,1723535498850,-1359.34,0.00016539,2]
[334753134,1723535498859,-617.33083774,0.00016539,2]
[334753135,1723535498868,-500.0,0.00016539,2]
[334753136,1723535498877,-1743.71,0.00016539,2]
[334753137,1723535498887,-1023.06,0.00016539,2]
[334753138,1723535498896,-500.0,0.00016539,2]
[334753139,1723535498905,-778.62,0.00016539,2]
[334753140,1723535498915,-1760.09,0.00016539,2]
[334753141,1723535498932,-500.0,0.00016539,2]
[334753142,1723535498944,-1230.55,0.00016539,2]
[334753143,1723535498953,-537.47,0.00016539,2]
[334753144,1723535498964,-1688.57,0.00016539,2]
[334753145,1723535498973,-1001.08,0.00016539,2]
[334753146,1723535498983,-500.0,0.00016539,2]
[334753147,1723535498992,-6177.95,0.00016539,2]
[334753148,1723535499002,-500.0,0.00016539,2]
[334753149,1723535499011,-500.0,0.00016539,2]
[334753150,1723535499022,-2922.39,0.00016539,2]
[334753151,1723535499031,-500.0,0.00016539,2]
[334753152,1723535499041,-500.0,0.00016539,2]
[334753153,1723535499051,-1300.36,0.00016539,2]
[334753154,1723535499060,-500.0,0.00016539,2]
[334753155,1723535499069,-500.0,0.00016539,2]
[334753156,1723535499078,-609.65,0.00016539,2]
[334753157,1723535499087,-523.35,0.00016539,2]
[334753158,1723535499097,-1411.68,0.00016539,2]
[334753159,1723535499106,-500.0,0.00016539,2]
[334753160,1723535499115,-500.0,0.00016539,2]
[334753161,1723535499124,-1209.11,0.00016539,2]
[334753162,1723535499134,-518.03,0.00016539,2]
[334753163,1723535499143,-1085.25,0.00016539,2]
[334753164,1723535499153,-991.7,0.00016539,2]
[334753165,1723535499162,-507.82,0.00016539,2]
[334753166,1723535499171,-644.63531883,0.00016539,2]
[334753167,1723535499180,-500.0,0.00016539,2]
[334753168,1723535499190,-686.92,0.00016539,2]
[334753169,1723535499200,-500.0,0.00016539,2]
[334753170,1723535499209,-2622.01,0.00016539,2]
[334753171,1723535499219,-500.0,0.00016539,2]
[334753172,1723535499228,-551.73,0.00016539,2]
[334753173,1723535499237,-500.0,0.00016539,2]
[334753174,1723535499247,-1670.97,0.00016539,2]
[334753175,1723535499256,-670.23,0.00016539,2]
[334753176,1723535499265,-500.0,0.00016539,2]
[334753177,1723535499278,-3541.36,0.00016539,2]
[334753178,1723535499292,-500.0,0.00016539,2]
[334753179,1723535499301,-500.0,0.00016539,2]
[334753180,1723535499311,-500.0,0.00016539,2]
[334753181,1723535499320,-500.0,0.00016539,2]
[334753182,1723535499330,-500.0,0.00016539,2]
[334753183,1723535499339,-1085.98,0.00016539,2]
[334753184,1723535499349,-500.0,0.00016539,2]
[334753185,1723535499358,-2167.9,0.00016539,2]
[334753186,1723535499369,-500.0,0.00016539,2]
[334753187,1723535499379,-500.0,0.00016539,2]
[334753188,1723535499388,-2066.64,0.00016539,2]
[334753189,1723535499398,-1180.27,0.00016539,2]
[334753190,1723535499407,-913.4,0.00016539,2]
[334753191,1723535499417,-500.0,0.00016539,2]
[334753192,1723535499427,-1756.06,0.00016539,2]
[334753193,1723535499437,-500.0,0.00016539,2]
[334753194,1723535499446,-500.0,0.00016539,2]
[334753195,1723535499455,-610.16,0.00016539,2]
[334753196,1723535499465,-4710.01,0.00016539,2]
[334753197,1723535499475,-1586.08,0.00016539,2]
[334753198,1723535499483,-381.40221155,0.00016539,2]
[334753199,1723535499493,-500.0,0.00016539,2]
[334753200,1723535499502,-842.93,0.00016539,2]
[334753201,1723535499512,-500.84,0.00016539,2]
[334753202,1723535499522,-500.0,0.00016539,2]
[334753203,1723535499531,-500.0,0.00016539,2]
[334753204,1723535499541,-934.19,0.00016539,2]
[334753205,1723535499554,-4812.55,0.00016539,2]
[334753206,1723535499564,-500.0,0.00016539,2]
[334753207,1723535499574,-605.96,0.00016539,2]
[334753208,1723535499583,-755.9,0.00016539,2]
[334753209,1723535499594,-1219.63,0.00016539,2]
[334753210,1723535499603,-500.0,0.00016539,2]
[334753211,1723535499612,-889.59,0.00016539,2]
[334753212,1723535499623,-2146.37,0.00016539,2]
[334753213,1723535499633,-521.65,0.00016539,2]
[334753214,1723535499643,-500.0,0.00016539,2]
[334753215,1723535499653,-2584.53,0.00016539,2]
[334753216,1723535499665,-500.0,0.00016539,2]
[334753217,1723535499674,-500.0,0.00016539,2]
[334753218,1723535499684,-690.9,0.00016539,2]
[334753219,1723535499694,-645.82,0.00016539,2]
[334753220,1723535499704,-4824.32,0.00016539,2]
[334753221,1723535499714,-500.0,0.00016539,2]
[334753222,1723535499724,-2092.45,0.00016539,2]
[334753223,1723535499735,-500.0,0.00016539,2]
[334753224,1723535499744,-1427.21,0.00016539,2]
[334753225,1723535499754,-500.0,0.00016539,2]
[334753226,1723535499764,-500.0,0.00016539,2]
[334753227,1723535499776,-323.9591589,0.00016539,2]
[334753228,1723535499786,-500.0,0.00016539,2]
[334753229,1723535499795,-500.0,0.00016539,2]
[334753230,1723535499806,-2925.2,0.00016539,2]
[334753231,1723535499816,-224.38282423,0.00016564,2]
[334753232,1723535499826,-201.0,0.0001658,2]
[334753233,1723535499836,-794.0,0.00016586,2]
[334753234,1723535499846,-4063.95675836,0.0001661,2]
[334753235,1723535499856,-150.0,0.0001662,2]
[334753236,1723535499866,-5800.0,0.00016665,2]
[334753237,1723535499876,-500.0,0.00016674,2]
[334753238,1723535499886,-5800.0,0.00016674,2]
[334753239,1723535499895,-5800.0,0.00016678,2]
[334753240,1723535499905,-5800.0,0.00016679,2]
[334753241,1723535499915,-5800.0,0.0001668,2]
[334753242,1723535499925,-5800.0,0.00016682,2]
[334753243,1723535499935,-500.0,0.00016682,2]
[334753244,1723535499945,-150.0,0.00016684,2]
[334753245,1723535499955,-5800.0,0.00016687,2]
[334753246,1723535499964,-5800.0,0.00016688,2]
[334753247,1723535499975,-5800.0,0.00016688,2]
[334753248,1723535499985,-5800.0,0.00016691,2]
[334753249,1723535499995,-500.0,0.00016691,2]
[334753250,1723535500005,-224.38282423,0.00016692,2]
[334753251,1723535500014,-5800.0,0.00016695,2]
[334753252,1723535500025,-5800.0,0.00016696,2]
[334753253,1723535500035,-5800.0,0.00016697,2]
[334753254,1723535500044,-5800.0,0.00016699,2]
[334753255,1723535500054,-2000.0,0.000167,2]
[334753256,1723535500064,-500.0,0.000167,2]
[334753257,1723535500074,-500.0,0.000167,2]
[334753258,1723535500084,-308.32,0.00016703,2]
[334753259,1723535500093,-338.18913153,0.00016706,2]
[334753260,1723535500103,-500.0,0.00016709,2]
[334753261,1723535500112,-500.0,0.00016709,2]
[334753262,1723535500123,-2000.0,0.00016712,2]
[334753263,1723535500134,-500.0,0.00016712,2]
[334753264,1723535500144,-500.0,0.00016712,2]
[334753265,1723535500154,-771.68,0.00016712,2]
[334753266,1723535500163,-500.0,0.00016712,2]
[334753267,1723535500173,-186.44,0.00016712,2]
[334753268,1723535500183,-1103.589328,0.00016712,2]
[334753269,1723535500193,-500.0,0.00016718,2]
[334753270,1723535500203,-500.0,0.00016718,2]
[334753271,1723535500213,-500.0,0.00016726,2]
[334753272,1723535500223,-500.0,0.00016726,2]
[334753273,1723535500232,-500.0,0.00016735,2]
[334753274,1723535500242,-500.0,0.00016735,2]
[334753275,1723535500252,-1412.75,0.00016741,2]
[334753276,1723535500263,-500.0,0.00016741,2]
[334753277,1723535500274,-500.0,0.00016741,2]
[334753278,1723535500284,-508.59,0.00016742,2]
[334753279,1723535500293,-500.0,0.00016742,2]
[334753280,1723535500304,-500.0,0.00016742,2]
[334753281,1723535500314,-500.0,0.00016742,2]
[334753282,1723535500325,-500.0,0.00016742,2]
[334753283,1723535500335,-500.0,0.00016742,2]
[334753284,1723535500345,-500.0,0.00016742,2]
[334753285,1723535500355,-336.31689872,0.00016742,2]
[334753286,1723535500366,-6591.73,0.00016742,2]
[334753287,1723535500376,-500.0,0.00016742,2]
[334753288,1723535500385,-1037.55,0.00016742,2]
[334753289,1723535500396,-500.0,0.00016742,2]
[334753290,1723535500406,-981.15,0.00016742,2]
[334753291,1723535500416,-500.0,0.00016742,2]
[334753292,1723535500426,-553.64,0.00016742,2]
[334753293,1723535500436,-347.28,0.00016742,2]
[334753294,1723535500447,-505.73,0.00016742,2]
[334753295,1723535500457,-888.8,0.00016742,2]
[334753296,1723535500467,-4003.23,0.00016742,2]
[334753297,1723535500477,-500.0,0.00016742,2]
[334753298,1723535500487,-500.0,0.00016742,2]
[334753299,1723535500497,-773.78,0.00016742,2]
[334753300,1723535500507,-500.0,0.00016742,2]
[334753301,1723535500517,-560.08,0.00016742,2]
[334753302,1723535500528,-500.0,0.00016742,2]
[334753303,1723535500538,-500.0,0.00016742,2]
[334753304,1723535500552,-1646.38,0.00016742,2]
[334753305,1723535500562,-1106.51,0.00016742,2]
[334753306,1723535500572,-1145.83,0.00016742,2]
[334753307,1723535500583,-583.89212197,0.00016742,2]
[334753308,1723535500594,-1271.02,0.00016742,2]
[334753309,1723535500604,-414.37297187,0.00016742,2]
[334753310,1723535500614,-756.19,0.00016742,2]
[334753311,1723535500626,-1189.17,0.00016742,2]
[334753312,1723535500636,-633.87,0.00016742,2]
[334753313,1723535500647,-500.0,0.00016742,2]
[334753314,1723535500657,-507.8,0.00016742,2]
[334753315,1723535500667,-555.42,0.00016742,2]
[334753316,1723535500677,-500.0,0.00016742,2]
[334753317,1723535500687,-869.38,0.00016742,2]
[334753318,1723535500698,-500.0,0.00016742,2]
[334753319,1723535500708,-653.45,0.00016743,2]
[334753320,1723535500718,-500.0,0.00016743,2]
[334753321,1723535500728,-663.86,0.00016743,2]
[334753322,1723535500739,-784.51,0.00016743,2]
[334753323,1723535500749,-500.0,0.00016743,2]
[334753324,1723535500759,-500.0,0.00016743,2]
[334753325,1723535500769,-500.0,0.00016743,2]
[334753326,1723535500779,-500.0,0.00016743,2]
[334753327,1723535500790,-2199.74,0.00016743,2]
[334753328,1723535500800,-362.74958548,0.00016743,2]
[334753329,1723535500810,-500.0,0.00016743,2]
[334753330,1723535500820,-241.37013807,0.00016743,2]
[334753331,1723535500830,-500.0,0.00016743,2]
[334753332,1723535500841,-392.08711935,0.00016743,2]
[334753333,1723535500851,-1837.44,0.00016743,2]
[334753334,1723535500861,-909.74,0.00016743,2]
[334753335,1723535500871,-16518.43,0.00016743,2]
[334753336,1723535500882,-500.0,0.00016743,2]
[334753337,1723535500892,-500.0,0.00016743,2]
[334753338,1723535500902,-932.05,0.00016743,2]
[334753339,1723535500912,-724.39,0.00016743,2]
[334753340,1723535500922,-523.8615503,0.00016743,2]
[334753341,1723535500932,-500.0,0.00016743,2]
[334753342,1723535500942,-587.6,0.00016743,2]
[334753343,1723535500954,-908.11,0.00016743,2]
[334753344,1723535500964,-799.22,0.00016743,2]
[334753345,1723535500974,-221.34527331,0.00016743,2]
[334753346,1723535500985,-416.57148335,0.00016743,2]
[334753347,1723535500995,-1082.91,0.00016743,2]
[334753348,1723535501005,-500.0,0.00016743,2]
[334753349,1723535501015,-500.0,0.00016743,2]
[334753350,1723535501027,-500.0,0.00016743,2]
[334753351,1723535501036,-15076.44,0.00016743,2]
[334753352,1723535501047,-500.0,0.00016743,2]
[334753353,1723535501057,-500.0,0.00016743,2]
[334753354,1723535501067,-500.0,0.00016743,2]
[334753355,1723535501077,-500.0,0.00016743,2]
[334753356,1723535501087,-4670.57,0.00016743,2]
[334753357,1723535501098,-667.34,0.00016743,2]
[334753358,1723535501108,-571.04,0.00016743,2]
[334753359,1723535501119,-1754.66,0.00016743,2]
[334753360,1723535501129,-534.32,0.00016743,2]
[334753361,1723535501139,-524.33,0.00016743,2]
[334753362,1723535501149,-500.0,0.00016743,2]
[334753363,1723535501159,-682.76,0.00016743,2]
[334753364,1723535501169,-2553.18,0.00016743,2]
[334753365,1723535501179,-1600.18,0.00016743,2]
[334753366,1723535501189,-500.0,0.00016743,2]
[334753367,1723535501200,-500.0,0.00016743,2]
[334753368,1723535501211,-549.82,0.00016743,2]
[334753369,1723535501221,-705.6,0.00016743,2]
[334753370,1723535501232,-500.0,0.00016743,2]
[334753371,1723535501242,-500.0,0.00016743,2]
[334753372,1723535501252,-500.0,0.00016743,2]
[334753373,1723535501262,-500.0,0.00016743,2]
[334753374,1723535501273,-500.0,0.00016743,2]
[334753375,1723535501283,-500.0,0.00016743,2]
[334753376,1723535501294,-500.0,0.00016743,2]
[334753377,1723535501304,-500.0,0.00016743,2]
[334753378,1723535501314,-500.0,0.00016743,2]
[334753379,1723535501324,-500.0,0.00016743,2]
[334753380,1723535501334,-500.0,0.00016743,2]
[334753381,1723535501345,-500.0,0.00016743,2]
[334753382,1723535501355,-803.87,0.00016743,2]
[334753383,1723535501366,-500.0,0.00016743,2]
[334753384,1723535501376,-500.0,0.00016744,2]
[334753385,1723535501386,-500.0,0.00016744,2]
[334753386,1723535501396,-500.0,0.00016753,2]
[334753387,1723535501406,-500.0,0.00016753,2]
[334753388,1723535501416,-500.0,0.00016762,2]
[334753389,1723535501426,-500.0,0.00016762,2]
[334753390,1723535501436,-500.0,0.0001677,2]
[334753391,1723535501446,-500.0,0.0001677,2]
[334753392,1723535501456,-500.0,0.00016779,2]
[334753393,1723535501466,-500.0,0.00016779,2]
[334753394,1723535501476,-159.2311207,0.0001678,2]
[334753395,1723535501486,-11672.85119998,0.0001678,2]
[334753396,1723535501496,-500.0,0.00016788,2]
[334753397,1723535501506,-500.0,0.00016788,2]
[334753398,1723535501516,-2368.83345419,0.00016789,2]
[334753399,1723535501527,-500.0,0.00016797,2]
[334753400,1723535501538,-500.0,0.00016797,2]
[334753401,1723535501551,-304.3,0.000168,2]
[334753402,1723535501562,-532.171089,0.00016801,2]
[334753403,1723535501572,-313.6618948,0.00016801,2]
[334753404,1723535501583,-500.0,0.00016806,2]
[334753405,1723535501594,-500.0,0.00016806,2]
[334753406,1723535501604,-500.0,0.00016808,2]
[334753407,1723535501616,-500.0,0.00016808,2]
[334753408,1723535501626,-423.4396859,0.00016808,2]
[334753409,1723535501636,-500.0,0.00016813,2]
[334753410,1723535501646,-1863.44,0.00016813,2]
[334753411,1723535501656,-500.0,0.00016813,2]
[334753412,1723535501667,-150.0,0.00016813,2]
[334753413,1723535501677,-1155.62,0.00016813,2]
[334753414,1723535501687,-714.2,0.00016813,2]
[334753415,1723535501699,-1241.0,0.00016813,2]
[334753416,1723535501901,-755.25,0.00016813,2]
[334753417,1723535501911,-791.16,0.00016813,2]
[334753418,1723535501921,-946.68,0.00016813,2]
[334753419,1723535501930,-1359.34,0.00016813,2]
[334753420,1723535501940,-500.0,0.00016813,2]
[334753421,1723535501950,-1743.71,0.00016813,2]
[334753422,1723535501960,-1023.06,0.00016813,2]
[334753423,1723535501969,-500.0,0.00016813,2]
[334753424,1723535501979,-778.62,0.00016813,2]
[334753425,1723535501988,-1760.09,0.00016813,2]
[334753426,1723535501998,-500.0,0.00016813,2]
[334753427,1723535502008,-1230.55,0.00016813,2]
[334753428,1723535502017,-537.47,0.00016813,2]
[334753429,1723535502027,-1688.57,0.00016813,2]
[334753430,1723535502038,-1001.08,0.00016813,2]
[334753431,1723535502048,-360.72597714,0.00016813,2]
[334753432,1723535502059,-6177.95,0.00016813,2]
[334753433,1723535502070,-500.0,0.00016813,2]
[334753434,1723535502081,-500.0,0.00016813,2]
[334753435,1723535502092,-2922.39,0.00016813,2]
[334753436,1723535502103,-500.0,0.00016813,2]
[334753437,1723535502113,-500.0,0.00016813,2]
[334753438,1723535502123,-1300.36,0.00016813,2]
[334753439,1723535502132,-500.0,0.00016813,2]
[334753440,1723535502142,-500.0,0.00016813,2]
[334753441,1723535502152,-609.65,0.00016813,2]
[334753442,1723535502162,-523.35,0.00016813,2]
[334753443,1723535502172,-1411.68,0.00016813,2]
[334753444,1723535502184,-500.0,0.00016813,2]
[334753445,1723535502194,-500.0,0.00016813,2]
[334753446,1723535502205,-1209.11,0.00016813,2]
[334753447,1723535502215,-518.03,0.00016813,2]
[334753448,1723535502225,-1085.25,0.00016813,2]
[334753449,1723535502236,-991.7,0.00016813,2]
[334753450,1723535502247,-507.82,0.00016813,2]
[334753451,1723535502257,-500.0,0.00016813,2]
[334753452,1723535502267,-686.92,0.00016813,2]
[334753453,1723535502278,-538.06478163,0.00016813,2]
[334753454,1723535502288,-2622.01,0.00016813,2]
[334753455,1723535502297,-500.0,0.00016813,2]
[334753456,1723535502307,-551.73,0.00016813,2]
[334753457,1723535502317,-505.23116429,0.00016813,2]
[334753458,1723535502328,-1670.97,0.00016813,2]
[334753459,1723535502339,-670.23,0.00016813,2]
[334753460,1723535502351,-500.0,0.00016813,2]
[334753461,1723535502361,-3541.36,0.00016813,2]
[334753462,1723535502371,-500.0,0.00016813,2]
[334753463,1723535502381,-500.0,0.00016813,2]
[334753464,1723535502391,-500.0,0.00016813,2]
[334753465,1723535502401,-500.0,0.00016813,2]
[334753466,1723535502410,-500.0,0.00016813,2]
[334753467,1723535502420,-1085.98,0.00016813,2]
[334753468,1723535502432,-494.10058569,0.00016813,2]
[334753469,1723535502443,-2167.9,0.00016813,2]
[334753470,1723535502454,-500.0,0.00016813,2]
[334753471,1723535502463,-500.0,0.00016813,2]
[334753472,1723535502475,-2066.64,0.00016813,2]
[334753473,1723535502487,-1180.27,0.00016813,2]
[334753474,1723535502496,-913.4,0.00016813,2]
[334753475,1723535502506,-500.0,0.00016813,2]
[334753476,1723535502515,-1756.06,0.00016813,2]
[334753477,1723535502525,-500.0,0.00016813,2]
[334753478,1723535502538,-500.0,0.00016813,2]
[334753479,1723535502551,-610.16,0.00016813,2]
[334753480,1723535502562,-4710.01,0.00016813,2]
[334753481,1723535502573,-1586.08,0.00016813,2]
[334753482,1723535502583,-500.0,0.00016813,2]
[334753483,1723535502594,-842.93,0.00016813,2]
[334753484,1723535502603,-500.84,0.00016813,2]
[334753485,1723535502614,-500.0,0.00016813,2]
[334753486,1723535502624,-500.0,0.00016813,2]
[334753487,1723535502634,-934.19,0.00016813,2]
[334753488,1723535502646,-4812.55,0.00016813,2]
[334753489,1723535502658,-500.0,0.00016813,2]
[334753490,1723535502669,-605.96,0.00016813,2]
[334753491,1723535502681,-755.9,0.00016813,2]
[334753492,1723535502692,-1219.63,0.00016813,2]
[334753493,1723535502702,-500.0,0.00016813,2]
[334753494,1723535502711,-889.59,0.00016813,2]
[334753495,1723535502722,-2146.37,0.00016813,2]
[334753496,1723535502732,-521.65,0.00016813,2]
[334753497,1723535502743,-250.85758912,0.00016813,2]
[334753498,1723535502752,-2584.53,0.00016813,2]
[334753499,1723535502761,-500.0,0.00016813,2]
[334753500,1723535502772,-500.0,0.00016813,2]
[334753501,1723535502783,-690.9,0.00016813,2]
[334753502,1723535502792,-645.82,0.00016813,2]
[334753503,1723535502802,-4824.32,0.00016813,2]
[334753504,1723535502812,-500.0,0.00016813,2]
[334753505,1723535502822,-2092.45,0.00016813,2]
[334753506,1723535502832,-500.0,0.00016813,2]
[334753507,1723535502842,-1427.21,0.00016813,2]
[334753508,1723535502852,-500.0,0.00016813,2]
[334753509,1723535502862,-500.0,0.00016813,2]
[334753510,1723535502871,-500.0,0.00016813,2]
[334753511,1723535502881,-500.0,0.00016813,2]
[334753512,1723535502892,-2925.2,0.00016813,2]
[334753513,1723535502902,-224.38282423,0.00016819,2]
[334753514,1723535502911,-167.0,0.00016876,2]
[334753515,1723535502922,-150.0,0.00016883,2]
[334753516,1723535502932,-212.95511117,0.00016902,2]
[334753517,1723535502943,-150.0,0.00016923,2]
[334753518,1723535502953,-224.38282423,0.00016947,2]
[334753519,1723535502963,-2000.0,0.00016986,2]
[334753520,1723535502974,-500.0,0.00016986,2]
[334753521,1723535502984,-500.0,0.00016986,2]
[334753522,1723535502993,-771.68,0.00016986,2]
[334753523,1723535503005,-500.0,0.00016986,2]
[334753524,1723535503016,-7008.83,0.00016986,2]
[334753525,1723535503032,-201.0,0.0001699,2]
[334753526,1723535503041,-4173.1045496,0.00017,2]
[334753527,1723535503051,-1412.75,0.00017015,2]
[334753528,1723535503060,-500.0,0.00017015,2]
[334753529,1723535503069,-500.0,0.00017015,2]
[334753530,1723535503078,-508.59,0.00017016,2]
[334753531,1723535503088,-500.0,0.00017016,2]
[334753532,1723535503098,-484.8911721,0.00017016,2]
[334753533,1723535503107,-500.0,0.00017016,2]
[334753534,1723535503117,-500.0,0.00017016,2]
[334753535,1723535503127,-500.0,0.00017016,2]
[334753536,1723535503137,-586.96397465,0.00017016,2]
[334753537,1723535503146,-6591.73,0.00017016,2]
[334753538,1723535503156,-500.0,0.00017016,2]
[334753539,1723535503166,-1037.55,0.00017016,2]
[334753540,1723535503175,-500.0,0.00017016,2]
[334753541,1723535503185,-981.15,0.00017016,2]
[334753542,1723535503194,-553.64,0.00017016,2]
[334753543,1723535503204,-500.0,0.00017016,2]
[334753544,1723535503213,-347.28,0.00017016,2]
[334753545,1723535503223,-505.73,0.00017016,2]
[334753546,1723535503233,-888.8,0.00017016,2]
[334753547,1723535503242,-4003.23,0.00017016,2]
[334753548,1723535503252,-500.0,0.00017016,2]
[334753549,1723535503262,-500.0,0.00017016,2]
[334753550,1723535503273,-773.78,0.00017016,2]
[334753551,1723535503282,-500.0,0.00017016,2]
[334753552,1723535503292,-560.08,0.00017016,2]
[334753553,1723535503301,-500.0,0.00017016,2]
[334753554,1723535503312,-343.63872707,0.00017016,2]
[334753555,1723535503321,-1646.38,0.00017016,2]
[334753556,1723535503331,-1106.51,0.00017016,2]
[334753557,1723535503340,-1145.83,0.00017016,2]
[334753558,1723535503351,-1271.02,0.00017016,2]
[334753559,1723535503361,-756.19,0.00017016,2]
[334753560,1723535503370,-1189.17,0.00017016,2]
[334753561,1723535503380,-633.87,0.00017016,2]
[334753562,1723535503390,-500.0,0.00017016,2]
[334753563,1723535503399,-507.8,0.00017016,2]
[334753564,1723535503409,-555.42,0.00017016,2]
[334753565,1723535503418,-500.0,0.00017016,2]
[334753566,1723535503428,-869.38,0.00017016,2]
[334753567,1723535503437,-500.0,0.00017016,2]
[334753568,1723535503446,-653.45,0.00017017,2]
[334753569,1723535503456,-500.0,0.00017017,2]
[334753570,1723535503465,-663.86,0.00017017,2]
[334753571,1723535503475,-784.51,0.00017017,2]
[334753572,1723535503484,-500.0,0.00017017,2]
[334753573,1723535503493,-500.0,0.00017017,2]
[334753574,1723535503503,-500.0,0.00017017,2]
[334753575,1723535503512,-500.0,0.00017017,2]
[334753576,1723535503521,-2199.74,0.00017017,2]
[334753577,1723535503539,-500.0,0.00017017,2]
[334753578,1723535503553,-500.0,0.00017017,2]
[334753579,1723535503563,-1837.44,0.00017017,2]
[334753580,1723535503573,-909.74,0.00017017,2]
[334753581,1723535503582,-16518.43,0.00017017,2]
[334753582,1723535503593,-500.0,0.00017017,2]
[334753583,1723535503603,-500.0,0.00017017,2]
[334753584,1723535503613,-932.05,0.00017017,2]
[334753585,1723535503624,-724.39,0.00017017,2]
[334753586,1723535503634,-500.0,0.00017017,2]
[334753587,1723535503644,-587.6,0.00017017,2]
[334753588,1723535503654,-908.11,0.00017017,2]
[334753589,1723535503664,-799.22,0.00017017,2]
[334753590,1723535503674,-1082.91,0.00017017,2]
[334753591,1723535503684,-500.0,0.00017017,2]
[334753592,1723535503693,-500.0,0.00017017,2]
[334753593,1723535503703,-485.43375292,0.00017017,2]
[334753594,1723535503713,-15076.44,0.00017017,2]
[334753595,1723535503723,-500.0,0.00017017,2]
[334753596,1723535503733,-500.0,0.00017017,2]
[334753597,1723535503743,-500.0,0.00017017,2]
[334753598,1723535503753,-511.54996748,0.00017017,2]
[334753599,1723535503762,-4670.57,0.00017017,2]
[334753600,1723535503772,-667.34,0.00017017,2]
[334753601,1723535503781,-571.04,0.00017017,2]
[334753602,1723535503791,-1754.66,0.00017017,2]
[334753603,1723535503800,-534.32,0.00017017,2]
[334753604,1723535503810,-524.33,0.00017017,2]
[334753605,1723535503820,-500.0,0.00017017,2]
[334753606,1723535503829,-682.76,0.00017017,2]
[334753607,1723535503839,-1600.18,0.00017017,2]
[334753608,1723535503849,-2553.18,0.00017017,2]
[334753609,1723535503859,-435.03923737,0.00017017,2]
[334753610,1723535503869,-500.0,0.00017017,2]
[334753611,1723535503878,-549.82,0.00017017,2]
[334753612,1723535503888,-705.6,0.00017017,2]
[334753613,1723535503898,-500.0,0.00017017,2]
[334753614,1723535503907,-500.0,0.00017017,2]
[334753615,1723535503917,-500.0,0.00017017,2]
[334753616,1723535503927,-500.0,0.00017017,2]
[334753617,1723535503936,-500.0,0.00017017,2]